bitfinex/quotes_SOLUSD_20240624
["timestamp","ask_amount","ask_price","bid_price","bid_amount"]
[1719257698840,7.7835,128.48,128.39,7.7886]
[1719257699026,8.12725873,128.5,128.34,20.0]
[1719257699027,8.12725873,128.5,128.36,38.9504]
[1719257699225,23.59,128.51,128.43,19.4658]
[1719257699634,31.3716,128.51,128.41,7.7873]
[1719257699828,31.3716,128.51,128.42,7.7869]
[1719257700182,0.17,128.5,128.42,7.7869]
[1719257700457,0.34,128.5,128.39,23.6926]
[1719257700628,0.34,128.5,128.37,43.4035]
[1719257700629,0.34,128.5,128.37,0.17]
[1719257700938,0.34,128.5,128.37,20.17]
[1719257701337,8.1223,128.5,128.4,7.7878]
[1719257701553,8.1223,128.5,128.41,7.7874]
[1719257701852,23.59,128.51,128.43,7.7859]
[1719257702078,23.59,128.51,128.44,7.7855]
[1719257702296,23.59,128.53,128.44,7.7855]
[1719257702441,8.12716636,128.55,128.46,27.2451]
[1719257702442,31.71716636,128.55,128.46,27.2451]
[1719257702643,31.71716636,128.55,128.46,27.2454]
[1719257702839,31.71716636,128.55,128.46,19.4612]
[1719257702840,15.90646636,128.55,128.46,19.4612]
[1719257703523,8.12716636,128.55,128.42,15.9842]
[1719257703725,45.0,128.54,128.43,20.0]
[1719257703928,0.34,128.53,128.44,7.7851]
[1719257704241,0.34,128.53,128.44,27.2492]
[1719257706056,7.7812,128.52,128.43,20.0]
[1719257706277,8.1218,128.51,128.41,19.4678]
[1719257706448,23.59,128.5,128.36,60.9202]
[1719257706663,0.34,128.49,128.38,27.2613]
[1719257706858,45.34,128.49,128.39,20.0]
[1719257707066,45.34,128.49,128.38,27.2613]
[1719257707236,23.59,128.47,128.36,7.7905]
[1719257707559,0.17,128.46,128.37,7.7896]
[1719257707750,0.34,128.46,128.37,7.7896]
[1719257708060,0.34,128.46,128.36,7.7904]
[1719257708372,23.59,128.44,128.32,41.4513]
[1719257708561,7.7873,128.42,128.32,29.7627]
[1719257708762,0.34,128.41,128.32,7.7929]
[1719257709136,0.34,128.41,128.33,7.7924]
[1719257709340,0.34,128.42,128.33,7.7924]
[1719257709686,0.34,128.42,128.33,19.4805]
[1719257709963,0.34,128.42,128.35,7.7908]
[1719257710553,0.34,128.42,128.34,7.7916]
[1719257710857,0.17,128.41,128.34,7.7916]
[1719257711156,0.34,128.43,128.32,7.7927]
[1719257711374,7.788,128.41,128.3,19.4847]
[1719257711571,0.34,128.4,128.31,27.7935]
[1719257711870,0.34,128.4,128.3,19.4847]
[1719257712058,0.34,128.4,128.32,7.7925]
[1719257712243,0.17,128.39,128.32,7.7925]
[1719257712452,0.34,128.41,128.32,7.7925]
[1719257712663,0.34,128.41,128.33,7.7923]
[1719257712866,8.12576294,128.44,128.34,7.7912]
[1719257712867,0.17,128.4,128.34,7.7912]
[1719257713038,301.92,128.54,128.36,6.0453]
[1719257713247,7.7822,128.5,128.4,19.4701]
[1719257713437,7.7821,128.5,128.4,7.7881]
[1719257713871,7.7816,128.51,128.41,7.7875]
[1719257714073,11.30219318,128.53,128.41,19.4687]
[1719257714257,11.30219318,128.53,128.38,19.4723]
[1719257714441,11.30219318,128.53,128.38,27.2615]
[1719257714442,7.7833,128.48,128.38,27.2615]
[1719257714649,19.4567,128.5,128.37,20.0]
[1719257714958,7.7835,128.48,128.37,20.0]
[1719257715144,0.17,128.47,128.37,20.0]
[1719257715345,0.34,128.47,128.38,27.2625]
[1719257715553,8.1239,128.47,128.38,27.2625]
[1719257716154,8.1239,128.47,128.38,19.4733]
[1719257716537,7.7846,128.46,128.36,7.7903]
[1719257716788,0.34,128.45,128.36,7.7903]
[1719257717142,0.34,128.45,128.37,7.7896]
[1719257717452,0.34,128.46,128.37,7.7896]
[1719257718049,8.1245,128.46,128.37,7.7896]
[1719257718445,7.7852,128.45,128.35,19.4767]
[1719257718649,0.34,128.44,128.35,19.4767]
[1719257718847,0.17,128.43,128.35,19.4767]
[1719257719049,0.17,128.44,128.32,19.4813]
[1719257719557,45.34,128.44,128.32,19.4813]
[1719257719769,7.7871,128.42,128.32,27.2738]
[1719257720069,0.34,128.41,128.34,7.7916]
[1719257720266,0.17,128.41,128.34,7.7916]
[1719257720483,6.54918416,128.48,128.38,19.4728]
[1719257720787,35.67477579,128.53,128.41,7.7875]
[1719257721100,7.7821,128.5,128.4,27.258]
[1719257721454,7.7828,128.49,128.4,19.4701]
[1719257721769,7.7822,128.5,128.4,27.2582]
[1719257722269,7.7816,128.51,128.41,7.7873]
[1719257722774,14.61371711,128.53,128.42,19.4667]
[1719257723171,14.61371711,128.53,128.44,7.7855]
[1719257723480,14.61371711,128.53,128.45,0.54258535]
[1719257723653,6.48894132,128.53,128.45,0.54258535]
[1719257723857,8.12297566,128.54,128.43,20.0]
[1719257724075,7.7813,128.52,128.42,27.2535]
[1719257724371,0.17,128.51,128.42,27.2535]
[1719257724582,0.17,128.51,128.44,7.7852]
[1719257724789,0.17,128.51,128.43,7.7862]
[1719257724951,0.17,128.52,128.43,7.7862]
[1719257725159,8.12297566,128.54,128.44,7.7857]
[1719257725377,10.95661739,128.55,128.45,7.785]
[1719257725674,14.20596673,128.55,128.45,7.785]
[1719257726189,14.20596673,128.55,128.46,1.5549987]
[1719257726577,14.20596673,128.55,128.45,7.785]
[1719257726770,0.17,128.54,128.45,7.785]
[1719257726978,0.17,128.54,128.44,19.4638]
[1719257727160,7.9498,128.54,128.44,27.2494]
[1719257727352,52.7803,128.53,128.44,27.2494]
[1719257727553,0.17,128.52,128.44,27.2494]
[1719257727775,0.17,128.52,128.45,52.785]
[1719257728183,0.34,128.52,128.45,52.785]
[1719257728480,0.17,128.52,128.45,52.785]
[1719257728670,0.17,128.52,128.45,45.0]
[1719257729180,0.17,128.52,128.45,52.7846]
[1719257729901,0.17,128.51,128.45,52.7846]
[1719257730376,0.17,128.51,128.45,52.785]
[1719257730557,0.17,128.51,128.46,7.784]
[1719257731680,0.17,128.51,128.45,52.7849]
[1719257732693,0.17,128.51,128.45,45.0]
[1719257732879,0.17,128.51,128.43,19.4655]
[1719257733090,0.34,128.52,128.43,19.4655]
[1719257733397,33.20091079,128.58,128.45,15.6691]
[1719257733677,38.8636,128.66,128.46,47.55]
[1719257733678,0.13048975,128.59,128.46,47.55]
[1719257733886,0.13048975,128.59,128.54,7.7791]
[1719257734080,0.13048975,128.59,128.55,45.0]
[1719257734579,0.13048975,128.59,128.54,45.0]
[1719257734778,0.13048975,128.59,128.54,52.7796]
[1719257736087,0.13048975,128.59,128.53,27.2304]
[1719257736410,0.13048975,128.59,128.5,19.4543]
[1719257736581,0.13048975,128.59,128.51,72.781]
[1719257736962,0.13048975,128.59,128.51,65.0]
[1719257737295,7.90708975,128.59,128.5,19.4543]
[1719257737485,0.34,128.58,128.5,19.4543]
[1719257737789,0.17,128.57,128.53,7.78]
[1719257737959,0.13048975,128.59,128.52,27.2323]
[1719257738202,0.13048975,128.59,128.47,45.3194]
[1719257738203,0.13048975,128.59,128.49,19.4557]
[1719257738428,0.13048975,128.59,128.5,7.7819]
[1719257738663,7.90718975,128.59,128.49,27.2381]
[1719257738989,0.34,128.58,128.5,52.782]
[1719257739189,0.17,128.57,128.5,52.782]
[1719257739872,0.17,128.58,128.51,19.4529]
[1719257740062,0.17,128.58,128.53,7.7799]
[1719257740265,0.17,128.58,128.51,27.2341]
[1719257740582,0.17,128.58,128.53,7.7797]
[1719257740769,0.17,128.58,128.54,45.0]
[1719257741774,0.13048975,128.59,128.54,52.7792]
[1719257741986,0.13048975,128.59,128.55,7.7786]
[1719257742298,0.13048975,128.59,128.54,52.7795]
[1719257742883,12.92828429,128.64,128.54,52.7795]
[1719257743090,0.34,128.63,128.54,52.7795]
[1719257743402,8.1143,128.63,128.54,45.0]
[1719257744167,0.34,128.63,128.55,7.7789]
[1719257744371,0.34,128.63,128.54,45.0]
[1719257744708,0.34,128.63,128.54,52.7792]
[1719257744905,8.1144,128.63,128.54,52.7792]
[1719257745096,7.775,128.62,128.54,45.0]
[1719257745387,0.34,128.61,128.54,45.0]
[1719257745969,0.34,128.62,128.54,45.0]
[1719257746158,0.34,128.62,128.54,64.4487]
[1719257746372,8.11870049,128.65,128.55,26.6378]
[1719257746622,19.4249,128.71,128.56,45.0]
[1719257746770,22.60231739,128.71,128.58,7.777]
[1719257746990,7.7721,128.67,128.59,45.0]
[1719257747176,19.4249,128.71,128.57,19.4437]
[1719257747376,8.11536214,128.7,128.59,7.7764]
[1719257747671,15.88586214,128.7,128.6,52.7758]
[1719257747871,9.69863175,128.71,128.6,45.0]
[1719257747872,7.7709,128.69,128.6,45.0]
[1719257748083,7.7713,128.68,128.6,45.0]
[1719257748690,7.7707,128.69,128.6,45.0]
[1719257748875,7.7712,128.68,128.6,45.0]
[1719257749397,7.7719,128.67,128.6,45.0]
[1719257749613,7.7719,128.67,128.58,7.7771]
[1719257749614,7.7726,128.66,128.56,19.4448]
[1719257749784,7.7726,128.66,128.56,27.2229]
[1719257749977,8.11855576,128.7,128.58,19.4426]
[1719257750168,7.7715,128.68,128.58,27.2194]
[1719257750479,3.17741739,128.69,128.55,20.0]
[1719257750691,3.17741739,128.69,128.54,20.0]
[1719257750876,3.17741739,128.69,128.57,7.7777]
[1719257751391,3.17741739,128.69,128.58,19.4417]
[1719257751777,7.7714,128.68,128.59,45.0]
[1719257752087,7.7719,128.67,128.59,45.0]
[1719257752723,0.17,128.66,128.58,19.4417]
[1719257752916,0.34,128.66,128.59,45.0]
[1719257753380,0.34,128.66,128.58,52.7771]
[1719257753986,7.7751,128.62,128.53,7.78]
[1719257754215,8.1154,128.61,128.52,14.0605]
[1719257754396,8.1154,128.61,128.52,6.2797]
[1719257754728,0.34,128.61,128.52,6.2797]
[1719257754890,0.34,128.61,128.53,7.7801]
[1719257755103,0.34,128.62,128.54,7.7795]
[1719257755338,0.34,128.63,128.58,7.7768]
[1719257755488,0.17,128.63,128.56,19.4461]
[1719257755797,0.17,128.63,128.57,52.7776]
[1719257756005,7.7718,128.67,128.57,52.7776]
[1719257756376,3.17741739,128.69,128.57,45.0]
[1719257756377,7.7726,128.66,128.57,45.0]
[1719257756572,7.7723,128.67,128.57,52.7775]
[1719257757722,7.7723,128.67,128.57,45.0]
[1719257757873,7.9425,128.66,128.57,52.7774]
[1719257758197,7.9425,128.66,128.57,45.0]
[1719257758401,7.9425,128.66,128.57,52.7776]
[1719257758602,0.17,128.65,128.57,52.7776]
[1719257758908,8.1125,128.66,128.57,52.7776]
[1719257759203,7.7731,128.65,128.56,19.4461]
[1719257759379,0.34,128.64,128.56,27.2245]
[1719257759571,0.34,128.64,128.53,19.4494]
[1719257759780,7.7746,128.63,128.53,39.4494]
[1719257760083,0.17,128.62,128.55,7.7785]
[1719257760291,0.34,128.64,128.53,39.4494]
[1719257760479,45.34,128.64,128.53,19.4494]
[1719257760731,45.34,128.64,128.52,14.0604]
[1719257760732,23.52,128.62,128.52,14.0604]
[1719257760894,0.34,128.61,128.52,14.0604]
[1719257761396,7.7765,128.6,128.5,24.37]
[1719257761579,0.34,128.61,128.49,19.4556]
[1719257761580,23.86,128.59,128.49,19.4556]
[1719257761791,31.4668,128.59,128.49,19.4556]
[1719257762073,7.9478,128.58,128.49,19.4556]
[1719257762271,0.17,128.57,128.49,19.4556]
[1719257762473,0.17,128.57,128.49,27.2381]
[1719257762895,7.7779,128.57,128.48,13.8425]
[1719257763091,0.34,128.56,128.48,7.783]
[1719257763883,0.34,128.56,128.47,15.1397]
[1719257764387,7.7791,128.55,128.46,19.4599]
[1719257764582,0.34,128.54,128.46,27.2443]
[1719257764790,0.34,128.54,128.43,16.3286]
[1719257764791,7.9497,128.54,128.44,7.7852]
[1719257764982,66.2549,128.64,128.47,38.9177]
[1719257765176,7.7765,128.6,128.47,38.9177]
[1719257765778,7.7765,128.6,128.5,27.2368]
[1719257766102,8.02818762,128.63,128.5,38.9089]
[1719257766300,7.774,128.64,128.54,27.2283]
[1719257766794,8.82832818,128.66,128.55,52.7788]
[1719257766795,7.7731,128.65,128.55,52.7788]
[1719257767200,28.25982818,128.66,128.51,39.4526]
[1719257767383,7.7744,128.63,128.52,45.0]
[1719257767587,7.7744,128.63,128.53,19.4505]
[1719257767796,7.7738,128.64,128.54,45.0]
[1719257768284,7.7744,128.63,128.54,45.0]
[1719257768489,8.82832818,128.66,128.55,7.7789]
[1719257768681,7.7737,128.64,128.56,45.0]
[1719257768891,16.63618107,128.66,128.54,45.0]
[1719257769100,7.775,128.62,128.54,45.0]
[1719257769298,7.775,128.62,128.53,45.0]
[1719257769791,0.34,128.61,128.53,45.0]
[1719257769995,0.34,128.61,128.55,7.7788]
[1719257770200,0.34,128.61,128.56,45.0]
[1719257770501,0.34,128.61,128.54,19.4481]
[1719257770696,0.17,128.6,128.53,52.78]
[1719257770885,0.34,128.62,128.53,52.78]
[1719257771281,16.63618107,128.66,128.53,45.0]
[1719257771487,24.40858107,128.66,128.56,7.7782]
[1719257771764,24.40858107,128.66,128.57,45.0]
[1719257771765,7.7732,128.65,128.57,45.0]
[1719257772106,7.7732,128.65,128.56,45.0]
[1719257772507,7.7732,128.65,128.56,52.7784]
[1719257772775,24.40878107,128.66,128.56,52.7784]
[1719257773309,7.7746,128.63,128.52,19.4507]
[1719257773526,7.7742,128.63,128.54,7.7793]
[1719257773688,7.7738,128.64,128.54,7.7793]
[1719257774082,16.63618107,128.66,128.55,7.779]
[1719257774387,7.7739,128.64,128.54,27.2283]
[1719257774598,0.34,128.63,128.54,27.2283]
[1719257774798,0.34,128.63,128.55,52.779]
[1719257775020,0.34,128.63,128.57,7.7774]
[1719257775313,0.34,128.63,128.56,27.2241]
[1719257775629,0.34,128.63,128.55,45.0]
[1719257775785,7.7753,128.62,128.55,45.0]
[1719257776110,0.34,128.61,128.54,45.0]
[1719257776424,0.17,128.6,128.54,45.0]
[1719257776618,0.17,128.61,128.54,45.0]
[1719257776830,0.17,128.62,128.54,45.0]
[1719257777204,0.17,128.62,128.54,52.7795]
[1719257778011,0.17,128.62,128.53,19.4492]
[1719257778012,7.7764,128.6,128.51,27.7814]
[1719257778314,0.34,128.59,128.52,27.2326]
[1719257778501,0.34,128.59,128.53,7.7802]
[1719257779439,0.34,128.59,128.5,7.7818]
[1719257779713,0.34,128.59,128.49,19.4553]
[1719257779895,8.1168,128.59,128.49,19.4553]
[1719257780302,7.7773,128.58,128.49,19.4553]
[1719257780520,0.34,128.57,128.47,7.7837]
[1719257780717,0.17,128.56,128.48,19.458]
[1719257780911,0.17,128.56,128.49,7.7826]
[1719257781413,0.34,128.57,128.49,7.7826]
[1719257781795,0.17,128.56,128.49,7.7826]
[1719257781994,45.34,128.58,128.49,7.7826]
[1719257782417,45.34,128.58,128.46,15.6921]
[1719257782634,7.7785,128.56,128.46,7.784]
[1719257782921,0.34,128.55,128.46,7.784]
[1719257783512,15.96666276,128.59,128.51,7.7813]
[1719257783727,15.61989314,128.59,128.49,19.4563]
[1719257784014,15.61989314,128.59,128.49,27.2385]
[1719257784218,15.61989314,128.59,128.45,38.9239]
[1719257784219,7.778,128.57,128.48,7.7831]
[1719257784418,31.338,128.57,128.48,7.7831]
[1719257784795,0.34,128.56,128.48,7.7831]
[1719257785110,0.34,128.56,128.47,7.7837]
[1719257785304,8.1185,128.56,128.47,7.7837]
[1719257785504,0.34,128.56,128.48,45.0]
[1719257785909,0.34,128.56,128.48,52.783]
[1719257787124,0.34,128.56,128.48,45.0]
[1719257787299,53.1186,128.56,128.47,52.7835]
[1719257788308,7.7801,128.54,128.44,7.7855]
[1719257788501,0.34,128.53,128.48,7.7829]
[1719257788733,0.17,128.52,128.47,19.4592]
[1719257788902,0.34,128.52,128.47,27.243]
[1719257789413,23.56,128.55,128.47,27.243]
[1719257789619,23.56,128.58,128.49,19.4559]
[1719257789816,23.56,128.58,128.49,27.2382]
[1719257790258,31.50022094,128.6,128.51,19.4535]
[1719257790401,31.50022094,128.6,128.51,27.2346]
[1719257790724,39.27632094,128.6,128.51,27.2346]
[1719257791413,7.7768,128.59,128.5,52.782]
[1719257791716,39.27642094,128.6,128.5,64.455]
[1719257792018,0.17,128.59,128.5,72.2367]
[1719257792224,0.34,128.59,128.5,72.2367]
[1719257792397,7.94022094,128.6,128.5,45.0]
[1719257792593,8.12132348,128.61,128.52,27.2326]
[1719257792809,23.56,128.61,128.53,45.0]
[1719257793622,0.17,128.6,128.53,45.0]
[1719257793805,8.1176293,128.63,128.54,7.7794]
[1719257794012,14.12194283,128.64,128.55,52.779]
[1719257794215,7.7738,128.64,128.55,52.779]
[1719257795412,0.17,128.63,128.55,52.779]
[1719257795614,0.34,128.63,128.55,52.779]
[1719257795811,8.1142,128.63,128.55,45.0]
[1719257796112,8.1144,128.63,128.53,7.7798]
[1719257796340,8.1144,128.63,128.54,45.0]
[1719257796724,7.9444,128.63,128.54,45.0]
[1719257797031,0.17,128.63,128.54,45.0]
[1719257797425,7.88184823,128.64,128.54,45.0]
[1719257797622,23.56,128.65,128.54,45.0]
[1719257798222,7.776,128.61,128.54,45.0]
[1719257798523,23.56,128.59,128.49,15.7638]
[1719257798718,0.34,128.58,128.49,15.7638]
[1719257798912,8.1174,128.58,128.49,15.7638]
[1719257799124,8.1174,128.58,128.49,23.5464]
[1719257799830,8.1174,128.58,128.5,45.0]
[1719257800341,7.7784,128.57,128.49,15.7638]
[1719257800527,0.34,128.58,128.49,7.7827]
[1719257800528,0.34,128.56,128.49,7.7827]
[1719257800829,0.34,128.55,128.49,7.7827]
[1719257801016,8.1174,128.58,128.49,7.7827]
[1719257801620,8.1174,128.58,128.5,45.0]
[1719257802402,8.1174,128.58,128.49,45.0]
[1719257802607,6.34814283,128.62,128.49,45.0]
[1719257802608,14.12314283,128.62,128.49,45.0]
[1719257802806,23.56,128.62,128.53,19.45]
[1719257803514,31.3336,128.64,128.54,52.7796]
[1719257804344,7.7743,128.63,128.54,45.0]
[1719257804539,7.775,128.62,128.54,45.0]
[1719257804715,31.67769781,128.64,128.54,45.0]
[1719257804912,7.7754,128.61,128.54,45.0]
[1719257805117,0.34,128.6,128.51,7.7813]
[1719257805330,0.17,128.59,128.52,45.0]
[1719257805521,0.17,128.59,128.51,45.0]
[1719257806129,31.67769781,128.64,128.54,27.2281]
[1719257806130,15.89129781,128.64,128.54,27.2281]
[1719257806332,15.89129781,128.64,128.55,45.0]
[1719257806333,23.56,128.63,128.55,45.0]
[1719257806712,23.56,128.63,128.51,19.4524]
[1719257807027,23.56,128.63,128.55,52.7789]
[1719257807226,23.56,128.63,128.56,45.0]
[1719257807528,0.17,128.62,128.56,45.0]
[1719257807933,0.17,128.62,128.55,64.4476]
[1719257808132,0.17,128.63,128.55,64.4476]
[1719257809351,7.82984131,128.65,128.56,20.0]
[1719257809641,8.11550351,128.68,128.57,88.1118]
[1719257809831,7.7723,128.67,128.57,88.1118]
[1719257810333,7.7723,128.67,128.57,88.1119]
[1719257810844,8.1125,128.66,128.57,88.1119]
[1719257812236,16.11487878,128.68,128.57,80.3342]
[1719257812420,15.77057527,128.68,128.57,80.3342]
[1719257812925,15.77057527,128.68,128.59,7.7766]
[1719257813128,23.56,128.69,128.6,7.776]
[1719257813424,3.17741739,128.71,128.62,7.7744]
[1719257813641,26.73741739,128.71,128.62,7.7744]
[1719257813824,34.50681739,128.71,128.62,7.7744]
[1719257814348,8.11375349,128.72,128.63,27.209]
[1719257814529,23.56,128.73,128.62,7.7744]
[1719257814718,23.56,128.73,128.6,19.4389]
[1719257814719,7.7694,128.71,128.61,7.7751]
[1719257815224,15.87815561,128.73,128.64,7.7736]
[1719257815760,15.87815561,128.73,128.62,19.4364]
[1719257815761,8.10975561,128.73,128.62,19.4364]
[1719257815932,8.11276492,128.74,128.65,7.7726]
[1719257816124,31.50399011,128.74,128.65,7.7726]
[1719257817141,23.56,128.74,128.66,7.7724]
[1719257817371,39.43706755,128.77,128.68,7.771]
[1719257817524,39.29881145,128.77,128.67,7.7715]
[1719257817725,31.53291145,128.77,128.68,27.1985]
[1719257817934,7.97291145,128.77,128.68,27.1985]
[1719257818146,7.7658,128.77,128.68,27.1985]
[1719257818445,23.56,128.78,128.68,7.7711]
[1719257818742,31.33273528,128.78,128.65,6.3669]
[1719257818917,31.33273528,128.78,128.67,19.429]
[1719257819117,31.33273528,128.78,128.66,20.0]
[1719257819598,7.7666,128.76,128.66,39.4307]
[1719257819724,7.7666,128.76,128.66,47.2028]
[1719257819928,7.7666,128.76,128.67,7.7717]
[1719257820140,0.17,128.75,128.67,7.7717]
[1719257820532,0.34,128.75,128.67,7.7717]
[1719257820847,23.56,128.77,128.65,6.3669]
[1719257821047,7.7664,128.76,128.66,27.7722]
[1719257821430,7.7664,128.76,128.67,7.7718]
[1719257821741,23.56,128.77,128.66,20.0]
[1719257821938,7.7672,128.75,128.66,20.0]
[1719257822259,0.34,128.74,128.67,7.7717]
[1719257822418,0.34,128.75,128.66,27.7721]
[1719257822822,0.34,128.75,128.67,19.4294]
[1719257823122,0.34,128.76,128.68,7.7711]
[1719257823439,0.17,128.75,128.68,7.7711]
[1719257823641,8.1059,128.77,128.68,7.7711]
[1719257824153,39.09793528,128.78,128.68,7.7707]
[1719257824319,7.7658,128.77,128.68,7.7707]
[1719257824649,8.11183602,128.79,128.69,27.1953]
[1719257824650,7.7647,128.79,128.69,27.1953]
[1719257825052,7.7638,128.81,128.71,19.4231]
[1719257825230,31.3229,128.82,128.72,7.7687]
[1719257825430,8.10947697,128.83,128.73,19.4201]
[1719257825749,7.7625,128.83,128.74,7.7674]
[1719257825962,7.7628,128.82,128.73,19.4201]
[1719257826449,7.7628,128.82,128.73,27.1881]
[1719257826667,7.7628,128.82,128.73,19.4201]
[1719257826829,31.3228,128.82,128.72,7.7682]
[1719257827032,31.323,128.82,128.72,27.1901]
[1719257827631,0.17,128.81,128.72,27.1901]
[1719257828056,0.17,128.81,128.72,19.4219]
[1719257828397,7.9328,128.82,128.72,19.4219]
[1719257828952,31.4928,128.82,128.72,27.1905]
[1719257829252,23.73,128.82,128.74,7.7675]
[1719257829428,0.17,128.81,128.73,7.7681]
[1719257831270,0.17,128.81,128.72,27.1904]
[1719257831763,0.17,128.81,128.71,22.2714]
[1719257831764,7.7643,128.8,128.71,22.2714]
[1719257831951,0.34,128.79,128.71,22.2714]
[1719257832154,0.34,128.79,128.7,7.7698]
[1719257832460,0.34,128.79,128.71,27.7693]
[1719257832675,0.34,128.79,128.69,19.4251]
[1719257832833,23.9,128.79,128.69,19.4251]
[1719257833042,23.9,128.79,128.69,27.1954]
[1719257833246,23.9,128.79,128.67,22.7285]
[1719257833554,23.9,128.79,128.69,7.77]
[1719257833747,23.9,128.79,128.68,39.4278]
[1719257833979,23.9,128.79,128.68,47.1987]
[1719257834353,23.9,128.79,128.69,7.7705]
[1719257835157,11.61412371,128.85,128.7,0.17]
[1719257835370,23.56,128.82,128.73,7.7678]
[1719257835549,23.56,128.82,128.68,20.0]
[1719257835770,23.56,128.82,128.69,7.7704]
[1719257836056,23.56,128.82,128.69,19.4254]
[1719257836274,8.11241709,128.81,128.71,7.7693]
[1719257836456,0.17,128.8,128.69,19.4254]
[1719257836947,7.7647,128.79,128.69,27.1956]
[1719257837141,0.17,128.78,128.72,7.7683]
[1719257837362,0.17,128.8,128.72,7.7683]
[1719257838494,15.65780223,128.85,128.76,7.7662]
[1719257838696,31.45670223,128.85,128.76,7.7662]
[1719257838872,39.56597733,128.85,128.76,7.7662]
[1719257839039,47.32697733,128.85,128.76,7.7662]
[1719257839240,31.45670223,128.85,128.76,7.7662]
[1719257839746,7.7619,128.84,128.75,27.184]
[1719257839975,7.7623,128.83,128.74,7.7674]
[1719257840269,7.7619,128.84,128.74,7.7674]
[1719257840465,31.45670223,128.85,128.73,30.5747]
[1719257840660,45.34,128.84,128.71,7.7692]
[1719257840845,23.56,128.82,128.72,20.0]
[1719257841167,0.34,128.81,128.72,20.0]
[1719257841462,0.34,128.81,128.71,39.4233]
[1719257842070,8.1035,128.81,128.71,47.1922]
[1719257842966,0.34,128.81,128.71,20.0]
[1719257843283,7.765,128.79,128.71,20.0]
[1719257843441,0.34,128.78,128.71,27.7693]
[1719257843647,23.56,128.82,128.73,7.768]
[1719257843848,7.7635,128.81,128.72,27.19]
[1719257844048,7.7639,128.8,128.71,27.7691]
[1719257844270,23.56,128.82,128.7,22.8068]
[1719257844580,23.56,128.82,128.71,19.4232]
[1719257844749,23.56,128.79,128.68,19.4273]
[1719257845097,7.7658,128.77,128.68,27.1982]
[1719257845268,23.56,128.79,128.69,7.7705]
[1719257845269,7.7653,128.78,128.69,7.7705]
[1719257845838,0.34,128.77,128.7,19.4243]
[1719257846066,23.56,128.82,128.72,7.7687]
[1719257846067,0.34,128.78,128.72,7.7687]
[1719257846359,0.34,128.78,128.72,27.1905]
[1719257846938,0.17,128.78,128.72,27.1905]
[1719257847235,0.17,128.78,128.72,19.4218]
[1719257847779,31.3229,128.82,128.73,7.768]
[1719257847948,0.17,128.81,128.73,7.768]
[1719257848149,7.9338,128.81,128.72,19.4218]
[1719257848380,7.7643,128.8,128.7,7.7696]
[1719257848576,0.17,128.79,128.71,20.0]
[1719257848866,0.17,128.79,128.71,27.7693]
[1719257849064,0.34,128.79,128.71,27.7693]
[1719257849449,0.34,128.79,128.69,19.4252]
[1719257850262,8.1047,128.79,128.69,19.4252]